[Event "11th LCC Rapid 2019"]
[Site "London"]
[Date "2019.12.07"]
[Round "4.2"]
[White "O'Gorman, Tom"]
[Black "Arkell, Keith C"]
[Result "0-1"]
[WhiteElo "2001"]
[BlackElo "2453"]
[PlyCount "176"]
[EventDate "2019.12.08"]
[EventType "swiss"]
[EventCountry "ENG"]
[TimeControl "15+10"]
[WhiteClock "0:07:04"]
[BlackClock "0:00:30"]

1. e4 {[%emt 0:00:00]} c6 {[%emt 0:00:00]} 2. d4 {[%emt 0:00:00]} d5 {[%emt 0:00:00]} 3. Nd2 {[%emt 0:00:00]} dxe4 {[%emt 0:00:00]} 4. Nxe4 {[%emt 0:00:00]} Nd7 {[%emt 0:00:00]} 5. Ng5 {[%emt 0:00:00]} Ngf6 {[%emt 0:00:00]} 6. Bd3 {[%emt 0:00:00]} Nb6 {[%emt 0:00:00]} 7. N1f3 {[%emt 0:00:00]} h6 {[%emt 0:00:00]} 8. Ne4 {[%emt 0:00:00]} Nxe4 {[%emt 0:00:00]} 9. Bxe4 {[%emt 0:00:00]} Bg4 {[%emt 0:00:00]} 10. h3 {[%emt 0:00:00]} Bxf3 {[%emt 0:00:00]} 11. Bxf3 {[%emt 0:00:00]} g6 {[%emt 0:00:00]} 12. O-O {[%emt 0:00:00]} Bg7 {[%emt 0:00:00]} 13. c3 {[%emt 0:00:00]} O-O {[%emt 0:00:00]} 14. Re1 {[%emt 0:00:00]} e6 {[%emt 0:00:00]} 15. Bf4 {[%emt 0:00:00]} Nd5 {[%emt 0:00:00]} 16. Bg3 {[%emt 0:00:00]} Qd7 {[%emt 0:00:00]} 17. Qb3 {[%emt 0:00:00]} Rfd8 {[%emt 0:00:00]} 18. Rad1 {[%emt 0:00:00]} b5 {[%emt 0:00:00]} 19. a4 {[%emt 0:00:00]} a6 {[%emt 0:00:00]} 20. axb5 {[%emt 0:00:00]} axb5 {[%emt 0:00:00]} 21. Ra1 {[%emt 0:00:00]} h5 {[%emt 0:00:00]} 22. Ra2 {[%emt 0:00:00]} Rxa2 {[%emt 0:00:00]} 23. Qxa2 {[%emt 0:00:00]} Bf6 {[%emt 0:00:00]} 24. Ra1 {[%emt 0:00:00]} h4 {[%emt 0:00:00]} 25. Bh2 {[%emt 0:00:00]} b4 {[%emt 0:00:00]} 26. Qc4 {[%emt 0:00:00]} bxc3 {[%emt 0:00:00]} 27. bxc3 {[%emt 0:00:00]} Qb7 {[%emt 0:00:00]} 28. Rd1 {[%emt 0:00:00]} Qb2 {[%emt 0:00:00]} 29. Bxd5 {[%emt 0:00:00]} cxd5 {[%emt 0:00:00]} 30. Qc7 {[%emt 0:00:00]} Ra8 {[%emt 0:00:00]} 31. Bf4 {[%emt 0:00:24]} Ra2 {[%emt 0:00:00]} 32. Be3 {[%emt 0:00:14]} Bg5 {[%emt 0:00:00]} 33. Qe5 {[%emt 0:00:02]} Bxe3 {[%emt 0:00:00]} 34. Qxe3 {[%emt 0:00:02]} Qc2 {[%emt 0:00:00]} 35. Rc1 {[%emt 0:00:28]} Qf5 {[%emt 0:00:00]} 36. Qf3 {[%emt 0:00:16]} Qxf3 {[%emt 0:00:00]} 37. gxf3 {[%emt 0:00:01]} Ra4 {[%emt 0:00:00]} 38. Kf1 {[%emt 0:00:03]} Kg7 {[%emt 0:00:00]} 39. Ke2 {[%emt 0:00:02]} Kf6 {[%emt 0:00:00]} 40. Ke3 {[%emt 0:01:10]} Kf5 {[%emt 0:00:00]} 41. Rc2 {[%emt 0:00:04]} Ra1 {[%emt 0:00:00]} 42. c4 {[%emt 0:00:03]} dxc4 {[%emt 0:00:00]} 43. Rxc4 {[%emt 0:00:01]} g5 {[%emt 0:00:00]} 44. Rc5+ {[%emt 0:00:19]} Kf6 {[%emt 0:00:00]} 45. f4 {[%emt 0:00:20]} Ra3+ {[%emt 0:00:13]} 46. Ke4 {[%emt 0:00:01]} gxf4 {[%emt 0:00:01]} 47. f3 {[%emt 0:00:27]} Kg6 {[%emt 0:00:01]} 48. Kxf4 {[%emt 0:00:44]} Rd3 {[%emt 0:00:08]} 49. Ke4 {[%emt 0:00:02]} Rd1 {[%emt 0:00:01]} 50. Rc3 {[%emt 0:00:58]} Re1+ {[%emt 0:00:56]} 51. Kf4 {[%emt 0:00:05]} Rg1 {[%emt 0:00:03]} 52. Rc2 {[%emt 0:00:14]} Rg3 {[%emt 0:00:07]} 53. Rh2 {[%emt 0:00:02]} f6 {[%emt 0:00:28]} 54. Re2 {[%emt 0:00:17]} Kf7 {[%emt 0:00:01]} 55. Rh2 {[%emt 0:00:01]} Ke7 {[%emt 0:00:01]} 56. Rh1 {[%emt 0:01:12]} Kd6 {[%emt 0:00:00]} 57. Ke4 {[%emt 0:00:02]} f5+ {[%emt 0:00:13]} 58. Ke3 {[%emt 0:00:30]} Kd5 {[%emt 0:00:01]} 59. Rh2 {[%emt 0:00:04]} Rg1 {[%emt 0:00:02]} 60. Re2 {[%emt 0:00:49]} Rh1 {[%emt 0:00:10]} 61. Kf4 {[%emt 0:00:07]} Rxh3 {[%emt 0:00:02]} 62. Re5+ {[%emt 0:00:01]} Kd6 {[%emt 0:00:01]} 63. Ra5 {[%emt 0:00:01]} Rh1 {[%emt 0:00:03]} 64. d5 {[%emt 0:00:10]} exd5 {[%emt 0:00:22]} 65. Kxf5 {[%emt 0:00:01]} h3 {[%emt 0:00:08]} 66. Kf4 {[%emt 0:00:18]} Rg1 {[%emt 0:02:06]} 67. Ra6+ {[%emt 0:00:06]} Kc5 68. Rh6 {[%emt 0:00:00]} Rh1 {[%emt 0:00:02]} 69. Rh8 {[%emt 0:00:53]} d4 {[%emt 0:00:15]} 70. Kg3 {[%emt 0:00:32]} d3 {[%emt 0:00:05]} 71. Rd8 {[%emt 0:00:18]} Kc4 {[%emt 0:00:01]} 72. f4 {[%emt 0:00:01]} Rf1 {[%emt 0:00:39]} 73. Rc8+ {[%emt 0:00:36]} Kd4 {[%emt 0:00:04]} 74. Rd8+ {[%emt 0:00:01]} Kc3 {[%emt 0:00:06]} 75. Rc8+ {[%emt 0:00:02]} Kb2 {[%emt 0:00:17]} 76. Rb8+ {[%emt 0:00:07]} Kc2 {[%emt 0:00:03]} 77. Rc8+ {[%emt 0:00:05]} Kd1 {[%emt 0:00:02]} 78. Rc4 {[%emt 0:00:01]} Rh1 {[%emt 0:00:10]} 79. f5 {[%emt 0:00:04]} d2 {[%emt 0:00:13]} 80. f6 {[%emt 0:00:44]} Rf1 {[%emt 0:00:09]} 81. Rc6 {[%emt 0:00:06]} Ke2 {[%emt 0:00:07]} 82. Re6+ {[%emt 0:00:01]} Kd3 {[%emt 0:00:01]} 83. Rd6+ {[%emt 0:00:02]} Kc2 {[%emt 0:00:03]} 84. Rc6+ {[%emt 0:00:02]} Kb3 {[%emt 0:00:02]} 85. Rb6+ {[%emt 0:00:50]} Kc4 {[%emt 0:00:01]} 86. Rd6 {[%emt 0:00:18]} d1=Q {[%emt 0:00:12]} 87. Rxd1 {[%emt 0:00:01]} Rxd1 {[%emt 0:00:01]} 88. Kxh3 {[%emt 0:00:00]} Rf1 {[%emt 0:00:04]} 0-1

[Event "11th LCC Rapid 2019"]
[Site "London"]
[Date "2019.12.07"]
[Round "4.3"]
[White "Gordon, Stephen J"]
[Black "Myall, Ivan J"]
[Result "1-0"]
[WhiteElo "2495"]
[BlackElo "1994"]
[PlyCount "97"]
[EventDate "2019.12.08"]
[EventType "swiss"]
[EventCountry "ENG"]
[TimeControl "15+10"]

1. c4 {[%emt 0:14:52]} e5 {[%emt 0:00:06]} 2. g3 {[%emt 0:00:03]} c6 {[%emt 0:00:05]} 3. d4 {[%emt 0:00:03]} e4 {[%emt 0:00:03]} 4. Qa4 {[%emt 0:00:19]} Nf6 {[%emt 0:00:46]} 5. Nc3 {[%emt 0:00:07]} a5 {[%emt 0:00:17]} 6. Bg2 {[%emt 0:00:43]} Bb4 {[%emt 0:00:03]} 7. Nh3 {[%emt 0:02:06]} O-O {[%emt 0:00:13]} 8. Bg5 {[%emt 0:00:32]} h6 {[%emt 0:00:25]} 9. Bxf6 {[%emt 0:00:33]} Qxf6 {[%emt 0:00:02]} 10. e3 {[%emt 0:00:58]} d5 {[%emt 0:00:40]} 11. cxd5 {[%emt 0:00:12]} cxd5 {[%emt 0:00:03]} 12. Nf4 {[%emt 0:00:10]} Bxc3+ {[%emt 0:00:26]} 13. bxc3 {[%emt 0:00:02]} Qc6 {[%emt 0:01:48]} 14. Qxc6 {[%emt 0:02:04]} bxc6 {[%emt 0:00:02]} 15. c4 {[%emt 0:00:10]} g5 {[%emt 0:00:10]} 16. Ne2 {[%emt 0:00:04]} Ba6 {[%emt 0:00:18]} 17. cxd5 {[%emt 0:00:08]} cxd5 {[%emt 0:00:32]} 18. Nc3 {[%emt 0:00:06]} Bc4 {[%emt 0:00:15]} 19. Bf1 {[%emt 0:01:50]} Bxf1 {[%emt 0:01:08]} 20. Rxf1 {[%emt 0:00:02]} Rd8 21. f3 {[%emt 0:00:34]} exf3 {[%emt 0:01:03]} 22. Rxf3 {[%emt 0:00:01]} Nc6 {[%emt 0:00:18]} 23. Rc1 {[%emt 0:01:11]} Rac8 {[%emt 0:01:41]} 24. Kd2 {[%emt 0:00:13]} Ne7 {[%emt 0:00:18]} 25. Rf6 {[%emt 0:00:31]} Kg7 {[%emt 0:01:31]} 26. Rcf1 {[%emt 0:00:02]} Rf8 27. Rd6 {[%emt 0:01:03]} Rcd8 {[%emt 0:01:31]} 28. Rff6 {[%emt 0:00:12]} Rb8 {[%emt 0:00:41]} 29. Rb6 {[%emt 0:00:17]} Rfc8 {[%emt 0:01:10]} 30. Rxh6 {[%emt 0:00:40]} Ng6 {[%emt 0:00:35]} 31. Rxb8 {[%emt 0:00:19]} Rxb8 {[%emt 0:00:02]} 32. Rh5 {[%emt 0:00:05]} f6 {[%emt 0:00:17]} 33. h4 {[%emt 0:00:26]} Rb2+ {[%emt 0:00:56]} 34. Kd3 {[%emt 0:00:12]} Rg2 {[%emt 0:00:12]} 35. hxg5 {[%emt 0:00:08]} Rxg3 {[%emt 0:00:32]} 36. gxf6+ {[%emt 0:00:04]} Kxf6 {[%emt 0:00:03]} 37. Nxd5+ {[%emt 0:00:15]} Kg7 {[%emt 0:00:09]} 38. Ke4 {[%emt 0:00:23]} Rg2 {[%emt 0:00:15]} 39. Nc3 {[%emt 0:00:08]} Rc2 {[%emt 0:00:18]} 40. Kd3 {[%emt 0:00:03]} Rg2 {[%emt 0:00:13]} 41. Rxa5 {[%emt 0:00:03]} Nh4 {[%emt 0:00:14]} 42. Nd5 {[%emt 0:00:43]} Nf3 {[%emt 0:00:16]} 43. Ra7+ {[%emt 0:00:02]} Kf8 {[%emt 0:00:07]} 44. Nf4 {[%emt 0:00:07]} Ne1+ {[%emt 0:00:22]} 45. Ke4 Rh2 {[%emt 0:00:37]} 46. a4 Ra2 {[%emt 0:00:16]} 47. a5 {[%emt 0:00:06]} Nc2 {[%emt 0:00:10]} 48. Nd5 {[%emt 0:00:04]} Ne1 {[%emt 0:00:27]} 49. a6 {[%emt 0:00:02]} 1-0

[Event "11th LCC Rapid 2019"]
[Site "London"]
[Date "2019.12.07"]
[Round "4.4"]
[White "Willow, Jonah B"]
[Black "Clarke, Brandon Gi"]
[Result "1-0"]
[WhiteElo "2355"]
[BlackElo "2380"]
[PlyCount "69"]
[EventDate "2019.12.08"]
[EventType "swiss"]
[EventCountry "ENG"]
[TimeControl "15+10"]
[WhiteClock "0:00:13"]
[BlackClock "0:02:43"]

1. e4 {[%emt 0:00:00]} c5 {[%emt 0:00:00]} 2. Nf3 {[%emt 0:00:00]} d6 {[%emt 0:00:00]} 3. Nc3 {[%emt 0:00:00]} Nf6 {[%emt 0:00:00]} 4. e5 {[%emt 0:00:00]} dxe5 {[%emt 0:00:00]} 5. Nxe5 {[%emt 0:00:00]} Nbd7 {[%emt 0:00:00]} 6. d4 {[%emt 0:00:00]} e6 {[%emt 0:00:00]} 7. Bf4 {[%emt 0:00:00]} cxd4 {[%emt 0:00:00]} 8. Qxd4 {[%emt 0:00:00]} Bc5 {[%emt 0:00:00]} 9. Qa4 {[%emt 0:00:00]} O-O {[%emt 0:00:00]} 10. O-O-O {[%emt 0:00:00]} Qe7 {[%emt 0:00:00]} 11. g4 {[%emt 0:00:00]} Nb6 {[%emt 0:00:00]} 12. Qb3 {[%emt 0:00:00]} Nfd5 {[%emt 0:00:00]} 13. Bg3 {[%emt 0:00:00]} Bxf2 {[%emt 0:00:00]} 14. Bxf2 {[%emt 0:00:00]} Qg5+ {[%emt 0:00:00]} 15. Kb1 {[%emt 0:00:00]} Qxe5 {[%emt 0:00:00]} 16. Bd4 {[%emt 0:00:00]} Qc7 {[%emt 0:00:00]} 17. Nb5 {[%emt 0:00:00]} Qc6 {[%emt 0:00:00]} 18. Bg2 {[%emt 0:00:00]} Bd7 {[%emt 0:00:00]} 19. Na3 {[%emt 0:00:00]} Rfc8 {[%emt 0:00:15]} 20. Bxb6 {[%emt 0:00:00]} axb6 {[%emt 0:00:35]} 21. Rhg1 {[%emt 0:00:07]} b5 {[%emt 0:01:05]} 22. Bxd5 {[%emt 0:00:27]} exd5 {[%emt 0:00:01]} 23. Qxd5 {[%emt 0:00:01]} Be6 {[%emt 0:01:01]} 24. Qxc6 {[%emt 0:00:09]} bxc6 {[%emt 0:00:01]} 25. c3 {[%emt 0:00:02]} Ra4 {[%emt 0:00:23]} 26. h3 {[%emt 0:01:24]} h5 {[%emt 0:00:34]} 27. gxh5 {[%emt 0:00:00]} Rh4 {[%emt 0:00:02]} 28. Rg5 {[%emt 0:00:00]} f6 {[%emt 0:00:15]} 29. Rc5 {[%emt 0:00:12]} Kf7 {[%emt 0:00:27]} 30. Nc2 {[%emt 0:00:17]} Rxh3 {[%emt 0:00:20]} 31. Nd4 {[%emt 0:00:09]} Bd5 {[%emt 0:00:08]} 32. Nxb5 {[%emt 0:00:15]} Rd8 {[%emt 0:00:15]} 33. Nd4 {[%emt 0:00:16]} Rxh5 {[%emt 0:00:05]} 34. Kc1 {[%emt 0:00:01]} Bxa2 {[%emt 0:00:15]} 35. Rxh5 {[%emt 0:00:02]} 1-0

[Event "11th LCC Rapid 2019"]
[Site "London"]
[Date "2019.12.07"]
[Round "4.5"]
[White "Eames, Robert S"]
[Black "Haydon, David L"]
[Result "0-1"]
[WhiteElo "2150"]
[BlackElo "2294"]
[PlyCount "84"]
[EventDate "2019.12.08"]
[EventType "swiss"]
[EventCountry "ENG"]
[TimeControl "15+10"]
[WhiteClock "0:09:49"]
[BlackClock "0:01:23"]

1. e4 {[%emt 0:00:00]} c6 {[%emt 0:00:00]} 2. d4 {[%emt 0:00:00]} d5 {[%emt 0:00:00]} 3. e5 {[%emt 0:00:00]} Bf5 {[%emt 0:00:00]} 4. h4 {[%emt 0:00:00]} h5 {[%emt 0:00:00]} 5. Bd3 {[%emt 0:00:00]} Bxd3 {[%emt 0:00:00]} 6. Qxd3 {[%emt 0:00:00]} e6 {[%emt 0:00:00]} 7. Bg5 {[%emt 0:00:00]} Qb6 {[%emt 0:00:00]} 8. Nd2 {[%emt 0:00:00]} Ne7 {[%emt 0:00:00]} 9. Ngf3 {[%emt 0:00:00]} Nf5 {[%emt 0:00:00]} 10. O-O {[%emt 0:00:00]} Nd7 {[%emt 0:00:00]} 11. c4 {[%emt 0:00:00]} dxc4 {[%emt 0:00:00]} 12. Nxc4 {[%emt 0:00:00]} Qa6 {[%emt 0:00:00]} 13. Rfd1 {[%emt 0:00:00]} Nb6 {[%emt 0:00:00]} 14. b3 {[%emt 0:00:00]} Bb4 {[%emt 0:00:00]} 15. a3 {[%emt 0:00:00]} Be7 {[%emt 0:00:00]} 16. a4 {[%emt 0:00:00]} Rd8 {[%emt 0:00:00]} 17. a5 {[%emt 0:00:00]} Nd5 {[%emt 0:00:00]} 18. Rac1 {[%emt 0:00:00]} Bxg5 {[%emt 0:00:00]} 19. hxg5 {[%emt 0:00:00]} O-O {[%emt 0:00:00]} 20. g6 {[%emt 0:00:00]} fxg6 {[%emt 0:00:00]} 21. Ng5 {[%emt 0:00:00]} Nf4 {[%emt 0:00:00]} 22. Qe4 {[%emt 0:00:00]} Rxd4 {[%emt 0:00:00]} 23. Rxd4 {[%emt 0:00:23]} Nxd4 {[%emt 0:00:00]} 24. Rd1 {[%emt 0:01:22]} c5 {[%emt 0:00:00]} 25. g3 {[%emt 0:00:23]} Nfe2+ {[%emt 0:00:00]} 26. Kg2 {[%emt 0:00:26]} Rf5 {[%emt 0:00:00]} 27. f4 {[%emt 0:00:19]} Nc3 {[%emt 0:00:00]} 28. Qd3 {[%emt 0:00:15]} Nxd1 {[%emt 0:00:00]} 29. Qxd1 {[%emt 0:00:02]} Rxg5 {[%emt 0:00:00]} 30. fxg5 {[%emt 0:00:04]} Qc6+ {[%emt 0:00:00]} 31. Kf2 {[%emt 0:00:52]} Qe4 {[%emt 0:00:00]} 32. Nd6 {[%emt 0:00:18]} Qxe5 {[%emt 0:00:00]} 33. Nxb7 {[%emt 0:00:06]} Qxg5 {[%emt 0:00:00]} 34. b4 {[%emt 0:00:24]} Qf6+ {[%emt 0:00:00]} 35. Kg2 {[%emt 0:00:07]} cxb4 {[%emt 0:00:00]} 36. Nc5 {[%emt 0:00:14]} Qe5 {[%emt 0:00:00]} 37. Nd3 {[%emt 0:00:07]} Qd5+ {[%emt 0:00:00]} 38. Kf2 {[%emt 0:00:03]} Qxa5 {[%emt 0:00:00]} 39. Nf4 {[%emt 0:00:04]} Qc5 {[%emt 0:00:00]} 40. Kg2 {[%emt 0:00:16]} e5 {[%emt 0:00:00]} 41. Nd3 {[%emt 0:00:04]} Qd5+ {[%emt 0:00:00]} 42. Kf2 {[%emt 0:00:03]} a5 {[%emt 0:00:00]} 0-1

[Event "11th LCC Rapid 2019"]
[Site "London"]
[Date "2019.12.07"]
[Round "4.6"]
[White "Ilfeld, Etan"]
[Black "Johnson, Daniel"]
[Result "0-1"]
[WhiteElo "2188"]
[BlackElo "2144"]
[PlyCount "64"]
[EventDate "2019.12.08"]
[EventType "swiss"]
[EventCountry "ENG"]
[TimeControl "15+10"]
[WhiteClock "0:00:25"]
[BlackClock "0:00:28"]

1. e4 {[%emt 0:00:00]} e5 {[%emt 0:00:00]} 2. Nf3 {[%emt 0:00:00]} Nc6 {[%emt 0:00:00]} 3. Bc4 {[%emt 0:00:00]} Bc5 {[%emt 0:00:00]} 4. c3 {[%emt 0:00:00]} Nf6 {[%emt 0:00:00]} 5. b4 {[%emt 0:00:00]} Bb6 {[%emt 0:00:00]} 6. d3 {[%emt 0:00:00]} d6 {[%emt 0:00:00]} 7. O-O {[%emt 0:00:00]} O-O {[%emt 0:00:00]} 8. a4 {[%emt 0:00:00]} a6 {[%emt 0:00:00]} 9. Bg5 {[%emt 0:00:00]} h6 {[%emt 0:00:00]} 10. Bh4 {[%emt 0:00:00]} Be6 {[%emt 0:00:00]} 11. Ba2 {[%emt 0:00:00]} g5 {[%emt 0:00:00]} 12. Nxg5 {[%emt 0:00:00]} hxg5 {[%emt 0:00:00]} 13. Bxg5 {[%emt 0:00:00]} Kg7 {[%emt 0:00:00]} 14. h4 {[%emt 0:00:00]} Qd7 {[%emt 0:00:00]} 15. Nd2 {[%emt 0:00:00]} Ng4 {[%emt 0:00:00]} 16. Nc4 {[%emt 0:00:00]} Ba7 {[%emt 0:00:00]} 17. Qe2 {[%emt 0:01:33]} f6 {[%emt 0:00:00]} 18. Bd2 {[%emt 0:00:00]} Rh8 {[%emt 0:00:02]} 19. g3 {[%emt 0:00:00]} Rag8 {[%emt 0:00:10]} 20. Kg2 {[%emt 0:00:00]} Kf8 {[%emt 0:00:26]} 21. f3 {[%emt 0:00:00]} Nh6 {[%emt 0:01:40]} 22. Rh1 {[%emt 0:00:29]} Rxg3+ {[%emt 0:01:19]} 23. Kxg3 {[%emt 0:00:17]} Qg7+ {[%emt 0:00:02]} 24. Bg5 {[%emt 0:01:29]} fxg5 {[%emt 0:00:01]} 25. h5 {[%emt 0:00:10]} g4 {[%emt 0:00:07]} 26. f4 {[%emt 0:00:23]} exf4+ {[%emt 0:00:08]} 27. Kxf4 {[%emt 0:00:02]} Bxc4 {[%emt 0:00:18]} 28. Kg3 {[%emt 0:00:16]} Bxa2 {[%emt 0:00:28]} 29. Rhf1+ {[%emt 0:00:04]} Bf7 {[%emt 0:00:06]} 30. Rf4 {[%emt 0:00:07]} Qxc3 {[%emt 0:00:07]} 31. Raf1 {[%emt 0:00:03]} Bd4 {[%emt 0:00:02]} 32. Qa2 {[%emt 0:00:14]} Be5 {[%emt 0:00:14]} 0-1

[Event "11th LCC Rapid 2019"]
[Site "London"]
[Date "2019.12.07"]
[Round "4.7"]
[White "Cordes, Hans-Joerg"]
[Black "Mitra, Roman C"]
[Result "1-0"]
[WhiteElo "2207"]
[BlackElo "2132"]
[PlyCount "75"]
[EventDate "2019.12.08"]
[EventType "swiss"]
[EventCountry "ENG"]
[TimeControl "15+10"]
[WhiteClock "0:01:49"]
[BlackClock "0:02:58"]

1. d4 {[%emt 0:00:00]} Nf6 {[%emt 0:00:00]} 2. c4 {[%emt 0:00:00]} e6 {[%emt 0:00:00]} 3. Nc3 {[%emt 0:00:00]} Bb4 {[%emt 0:00:00]} 4. Qc2 {[%emt 0:00:00]} c5 {[%emt 0:00:00]} 5. dxc5 {[%emt 0:00:00]} Bxc5 {[%emt 0:00:00]} 6. Nf3 {[%emt 0:00:00]} Qb6 {[%emt 0:00:00]} 7. e3 {[%emt 0:00:00]} Qc7 {[%emt 0:00:00]} 8. Be2 {[%emt 0:00:00]} O-O {[%emt 0:00:00]} 9. O-O {[%emt 0:00:00]} a6 {[%emt 0:00:00]} 10. a3 {[%emt 0:00:00]} b6 {[%emt 0:00:00]} 11. b4 {[%emt 0:00:00]} Be7 {[%emt 0:00:00]} 12. Bb2 {[%emt 0:00:00]} d6 {[%emt 0:00:00]} 13. Rac1 {[%emt 0:00:00]} Nbd7 {[%emt 0:00:00]} 14. Bd3 {[%emt 0:00:00]} Bb7 {[%emt 0:00:00]} 15. Ne4 {[%emt 0:00:00]} h6 {[%emt 0:00:00]} 16. Qb1 {[%emt 0:00:00]} Nxe4 {[%emt 0:00:00]} 17. Bxe4 {[%emt 0:00:00]} a5 {[%emt 0:00:00]} 18. Nd4 {[%emt 0:00:00]} axb4 {[%emt 0:00:00]} 19. axb4 {[%emt 0:00:00]} Bxe4 {[%emt 0:00:00]} 20. Qxe4 {[%emt 0:00:00]} Ne5 {[%emt 0:00:00]} 21. f4 {[%emt 0:00:00]} Nd7 {[%emt 0:00:00]} 22. Rfd1 {[%emt 0:00:00]} Nf6 {[%emt 0:00:00]} 23. Qc6 {[%emt 0:00:00]} Qb8 {[%emt 0:00:00]} 24. Ra1 {[%emt 0:00:00]} Rxa1 {[%emt 0:00:00]} 25. Rxa1 {[%emt 0:00:00]} Rc8 {[%emt 0:00:00]} 26. Qf3 {[%emt 0:00:00]} d5 {[%emt 0:00:00]} 27. cxd5 {[%emt 0:00:00]} Nxd5 {[%emt 0:00:00]} 28. b5 {[%emt 0:00:00]} Bf6 {[%emt 0:00:00]} 29. Nc6 {[%emt 0:00:35]} Rxc6 {[%emt 0:00:00]} 30. Bxf6 {[%emt 0:00:02]} Rc5 {[%emt 0:00:00]} 31. Bd4 {[%emt 0:01:01]} Rxb5 {[%emt 0:00:00]} 32. Be5 {[%emt 0:00:14]} Qe8 {[%emt 0:00:00]} 33. e4 {[%emt 0:00:16]} Ne7 {[%emt 0:00:00]} 34. Qc3 {[%emt 0:00:21]} f6 {[%emt 0:00:07]} 35. Bxf6 {[%emt 0:00:34]} gxf6 {[%emt 0:02:45]} 36. Qxf6 {[%emt 0:00:02]} Nc6 {[%emt 0:00:13]} 37. Ra3 {[%emt 0:00:19]} Kh7 {[%emt 0:01:31]} 38. Rg3 {[%emt 0:00:13]} 1-0

[Event "11th LCC Rapid 2019"]
[Site "London"]
[Date "2019.12.07"]
[Round "4.8"]
[White "Walker, Samuel A"]
[Black "Fernandez, Michael"]
[Result "1-0"]
[WhiteElo "2039"]
[BlackElo "2186"]
[PlyCount "73"]
[EventDate "2019.12.08"]
[EventType "swiss"]
[EventCountry "ENG"]
[TimeControl "15+10"]
[WhiteClock "0:01:18"]
[BlackClock "0:02:07"]

1. Nf3 {[%emt 0:00:00]} c5 {[%emt 0:00:00]} 2. b3 {[%emt 0:00:00]} Nc6 {[%emt 0:00:00]} 3. Bb2 {[%emt 0:00:00]} d6 {[%emt 0:00:00]} 4. g3 {[%emt 0:00:00]} e5 {[%emt 0:00:00]} 5. d3 {[%emt 0:00:00]} g6 {[%emt 0:00:00]} 6. Bg2 {[%emt 0:00:00]} Bg7 {[%emt 0:00:00]} 7. O-O {[%emt 0:00:00]} Nge7 {[%emt 0:00:00]} 8. c4 {[%emt 0:00:00]} O-O {[%emt 0:00:00]} 9. Nc3 {[%emt 0:00:00]} a6 {[%emt 0:00:00]} 10. Qd2 {[%emt 0:00:00]} h6 {[%emt 0:00:00]} 11. Nd5 {[%emt 0:00:00]} Nxd5 {[%emt 0:00:00]} 12. cxd5 {[%emt 0:00:00]} Ne7 {[%emt 0:00:00]} 13. b4 {[%emt 0:00:00]} b6 {[%emt 0:00:00]} 14. bxc5 {[%emt 0:00:00]} bxc5 {[%emt 0:00:00]} 15. Rab1 {[%emt 0:00:00]} Bd7 {[%emt 0:00:00]} 16. Bc3 {[%emt 0:00:00]} Bb5 {[%emt 0:00:00]} 17. Ba5 {[%emt 0:00:00]} Qd7 {[%emt 0:00:00]} 18. Ne1 {[%emt 0:00:00]} c4 {[%emt 0:00:00]} 19. dxc4 {[%emt 0:00:00]} Bxc4 {[%emt 0:00:00]} 20. Nc2 {[%emt 0:00:00]} Bxa2 {[%emt 0:00:00]} 21. Rb6 {[%emt 0:00:00]} Bc4 {[%emt 0:00:00]} 22. Nb4 {[%emt 0:00:00]} Rab8 {[%emt 0:00:00]} 23. Rxb8 {[%emt 0:00:00]} Rxb8 {[%emt 0:00:00]} 24. Rc1 {[%emt 0:00:00]} Qb5 {[%emt 0:00:00]} 25. Nc6 {[%emt 0:00:00]} Nxc6 {[%emt 0:00:00]} 26. dxc6 {[%emt 0:00:00]} d5 {[%emt 0:00:00]} 27. c7 {[%emt 0:00:00]} Rc8 {[%emt 0:00:38]} 28. e4 {[%emt 0:00:00]} Bf8 {[%emt 0:02:47]} 29. Bh3 {[%emt 0:00:00]} f5 {[%emt 0:00:14]} 30. exf5 {[%emt 0:00:00]} Ba3 {[%emt 0:01:04]} 31. Ra1 {[%emt 0:00:38]} Bd6 {[%emt 0:00:10]} 32. fxg6 {[%emt 0:00:15]} Rxc7 {[%emt 0:00:00]} 33. Bxc7 {[%emt 0:00:34]} Bxc7 {[%emt 0:00:01]} 34. Qxh6 {[%emt 0:00:08]} d4 {[%emt 0:00:01]} 35. Qh7+ {[%emt 0:00:32]} Kf8 {[%emt 0:00:01]} 36. g7+ {[%emt 0:02:01]} Ke8 {[%emt 0:00:01]} 37. g8=Q+ {[%emt 0:00:18]} 1-0